[Event "Titled Tuesday Blitz May 9 Late 2023"]
[White "Leiva, Gianmarco"]
[Black "Tang, Andrew"]
[WhiteFideId "3804399"]
[BlackFideId "2059630"]
[WhiteElo "2365"]
[BlackElo "2596"]
[Result "1/2-1/2"]
[Round "03"]
[TimeControl "180+2"]
[Date "2023.05.09"]
[WhiteClock "0:00:04"]
[BlackClock "0:00:09"]

1. e4 {[%clk 0:03:00]}  e5 {[%clk 0:03:00]} 2. Nf3 {[%clk 0:03:01]}  Nc6 {[%clk 0:03:00]} 3. Bc4 {[%clk 0:03:01]}  Nf6 {[%clk 0:03:00]} 4. d3 {[%clk 0:03:01]}  h6 {[%clk 0:03:00]} 5. Nc3 {[%clk 0:02:58]}  d6 {[%clk 0:02:58]} 6. a3 {[%clk 0:02:55]}  g5 {[%clk 0:02:50]} 7. h3 {[%clk 0:02:49]}  Bg7 {[%clk 0:02:43]} 8. Be3 {[%clk 0:02:41]}  Qe7 {[%clk 0:02:41]} 9. Nd5 {[%clk 0:02:30]}  Nxd5 {[%clk 0:02:40]} 10. Bxd5 {[%clk 0:02:30]}  Be6 {[%clk 0:02:11]} 11. Nd2 {[%clk 0:02:17]}  O-O-O {[%clk 0:01:48]} 12. c3 {[%clk 0:02:09]}  f5 {[%clk 0:01:38]} 13. Qa4 {[%clk 0:02:02]}  f4 {[%clk 0:01:02]} 14. Bxa7 {[%clk 0:01:38]}  Kd7 {[%clk 0:00:55]} 15. Bxe6+ {[%clk 0:01:30]}  Qxe6 {[%clk 0:00:51]} 16. d4 {[%clk 0:01:31]}  exd4 {[%clk 0:00:07]} 17. Bxd4 {[%clk 0:01:30]}  Ra8 {[%clk 0:00:07]} 18. Qb5 {[%clk 0:01:30]}  Ra5 {[%clk 0:00:06]} 19. Qd3 {[%clk 0:01:31]}  Bxd4 {[%clk 0:00:05]} 20. cxd4 {[%clk 0:01:31]}  Qf6 {[%clk 0:00:05]} 21. Nb3 {[%clk 0:01:16]}  Ra6 {[%clk 0:00:05]} 22. O-O-O {[%clk 0:01:08]}  Kc8 {[%clk 0:00:05]} 23. Rhe1 {[%clk 0:01:06]}  Rb6 {[%clk 0:00:05]} 24. Qc3 {[%clk 0:00:52]}  Rf8 {[%clk 0:00:05]} 25. Kb1 {[%clk 0:00:27]}  f3 {[%clk 0:00:04]} 26. g4 {[%clk 0:00:23]}  Qf7 {[%clk 0:00:03]} 27. Re3 {[%clk 0:00:22]}  Kb8 {[%clk 0:00:03]} 28. Rdd3 {[%clk 0:00:22]}  Qg6 {[%clk 0:00:02]} 29. Ka1 {[%clk 0:00:21]}  d5 {[%clk 0:00:02]} 30. exd5 {[%clk 0:00:17]}  Na7 {[%clk 0:00:03]} 31. Nc5 {[%clk 0:00:17]}  Rd8 {[%clk 0:00:03]} 32. Re7 {[%clk 0:00:15]}  Nb5 {[%clk 0:00:03]} 33. Qc4 {[%clk 0:00:12]}  Nd6 {[%clk 0:00:03]} 34. Na6+ {[%clk 0:00:10]}  Rxa6 {[%clk 0:00:02]} 35. Qxc7+ {[%clk 0:00:10]}  Ka7 {[%clk 0:00:03]} 36. Rb3 {[%clk 0:00:05]}  Rb8 {[%clk 0:00:03]} 37. Re6 {[%clk 0:00:05]}  Qf7 {[%clk 0:00:01]} 38. Qc5+ {[%clk 0:00:04]}  Ka8 {[%clk 0:00:01]} 39. Rxd6 {[%clk 0:00:05]}  Ra7 {[%clk 0:00:01]} 40. Qb6 {[%clk 0:00:04]}  Qf4 {[%clk 0:00:01]} 41. Re6 {[%clk 0:00:03]}  Qc1+ {[%clk 0:00:02]} 42. Ka2 {[%clk 0:00:03]}  Qc4 {[%clk 0:00:03]} 43. Qb4 {[%clk 0:00:03]}  Qxd5 {[%clk 0:00:03]} 44. Re5 {[%clk 0:00:03]}  Qd7 {[%clk 0:00:03]} 45. Qb5 {[%clk 0:00:03]}  Qxd4 {[%clk 0:00:03]} 46. Ree3 {[%clk 0:00:02]}  Rc8 {[%clk 0:00:03]} 47. Red3 {[%clk 0:00:02]}  Qe4 {[%clk 0:00:04]} 48. Rdc3 {[%clk 0:00:02]}  Rd8 {[%clk 0:00:04]} 49. Qb4 {[%clk 0:00:01]}  Qe6 {[%clk 0:00:04]} 50. Re3 {[%clk 0:00:01]}  Qd7 {[%clk 0:00:03]} 51. Rxf3 {[%clk 0:00:02]}  Rc8 {[%clk 0:00:04]} 52. Rfd3 {[%clk 0:00:02]}  Qf7 {[%clk 0:00:04]} 53. Qd4 {[%clk 0:00:02]}  Ra6 {[%clk 0:00:04]} 54. Qd5 {[%clk 0:00:03]}  Qc7 {[%clk 0:00:04]} 55. Qb5 {[%clk 0:00:03]}  Rc6 {[%clk 0:00:04]} 56. Rdc3 {[%clk 0:00:03]}  Qf7 {[%clk 0:00:05]} 57. Rxc6 {[%clk 0:00:03]}  Rxc6 {[%clk 0:00:06]} 58. Qa5+ {[%clk 0:00:03]}  Kb8 {[%clk 0:00:06]} 59. Qd8+ {[%clk 0:00:04]}  Ka7 {[%clk 0:00:07]} 60. Qd4+ {[%clk 0:00:04]}  Kb8 {[%clk 0:00:07]} 61. Qd8+ {[%clk 0:00:04]}  Ka7 {[%clk 0:00:08]} 62. Qd3 {[%clk 0:00:04]}  b6 {[%clk 0:00:08]} 63. Qe3 {[%clk 0:00:04]}  Kb7 {[%clk 0:00:08]} 64. Qf3 {[%clk 0:00:05]}  Qg8 {[%clk 0:00:08]} 65. Qe3 {[%clk 0:00:04]}  Qf7 {[%clk 0:00:07]} 66. Qd4 {[%clk 0:00:04]}  Qe6 {[%clk 0:00:08]} 67. Qb4 {[%clk 0:00:04]}  Kc7 {[%clk 0:00:06]} 68. f4 {[%clk 0:00:04]}  gxf4 {[%clk 0:00:06]} 69. Qxf4+ {[%clk 0:00:04]}  Kb7 {[%clk 0:00:07]} 70. Qf3 {[%clk 0:00:04]}  Ka7 {[%clk 0:00:07]} 71. Qf5 {[%clk 0:00:04]}  Qc4 {[%clk 0:00:06]} 72. Qd7+ {[%clk 0:00:03]}  Rc7 {[%clk 0:00:06]} 73. Qd3 {[%clk 0:00:03]}  Qe6 {[%clk 0:00:06]} 74. Qe3 {[%clk 0:00:04]}  Qc6 {[%clk 0:00:04]} 75. Qd4 {[%clk 0:00:03]}  Rd7 {[%clk 0:00:03]} 76. Qe3 {[%clk 0:00:03]}  Rc7 {[%clk 0:00:03]} 77. h4 {[%clk 0:00:03]}  Rb7 {[%clk 0:00:03]} 78. g5 {[%clk 0:00:03]}  hxg5 {[%clk 0:00:03]} 79. hxg5 {[%clk 0:00:04]}  Qd5 {[%clk 0:00:04]} 80. Qg3 {[%clk 0:00:04]}  Rg7 {[%clk 0:00:04]} 81. Qe3 {[%clk 0:00:04]}  Qc6 {[%clk 0:00:04]} 82. Qd4 {[%clk 0:00:03]}  Rxg5 {[%clk 0:00:04]} 83. Re3 {[%clk 0:00:03]}  Rd5 {[%clk 0:00:03]} 84. Re7+ {[%clk 0:00:03]}  Ka6 {[%clk 0:00:04]} 85. Qb4 {[%clk 0:00:03]}  Rc5 {[%clk 0:00:03]} 86. Re3 {[%clk 0:00:02]}  Qd5+ {[%clk 0:00:03]} 87. Qb3 {[%clk 0:00:03]}  Qc6 {[%clk 0:00:04]} 88. Qd3+ {[%clk 0:00:03]}  b5 {[%clk 0:00:02]} 89. Qe2 {[%clk 0:00:02]}  Qd5+ {[%clk 0:00:03]} 90. Rb3 {[%clk 0:00:01]}  Rc6 {[%clk 0:00:03]} 91. Qd3 {[%clk 0:00:02]}  Qc5 {[%clk 0:00:03]} 92. Rc3 {[%clk 0:00:02]}  Qb6 {[%clk 0:00:03]} 93. Rxc6 {[%clk 0:00:02]}  Qxc6 {[%clk 0:00:04]} 94. a4 {[%clk 0:00:03]}  Qe6+ {[%clk 0:00:04]} 95. Ka3 {[%clk 0:00:03]}  Qe7+ {[%clk 0:00:05]} 96. b4 {[%clk 0:00:03]}  Qe5 {[%clk 0:00:05]} 97. axb5+ {[%clk 0:00:02]}  Qxb5 {[%clk 0:00:05]} 98. Qg6+ {[%clk 0:00:03]}  Qb6 {[%clk 0:00:05]} 99. Qd3+ {[%clk 0:00:03]}  Qb5 {[%clk 0:00:06]} 100. Qc3 {[%clk 0:00:03]}  Qd5 {[%clk 0:00:06]} 101. Qc2 {[%clk 0:00:03]}  Kb6 {[%clk 0:00:06]} 102. Qf2+ {[%clk 0:00:03]}  Kb5 {[%clk 0:00:06]} 103. Qe2+ {[%clk 0:00:03]}  Kb6 {[%clk 0:00:06]} 104. Qe3+ {[%clk 0:00:04]}  Kb5 {[%clk 0:00:07]} 105. Qe2+ {[%clk 0:00:04]}  Kb6 {[%clk 0:00:07]} 106. Qf2+ {[%clk 0:00:04]}  Kb5 {[%clk 0:00:07]} 107. Qf1+ {[%clk 0:00:05]}  Kb6 {[%clk 0:00:08]} 108. Qg1+ {[%clk 0:00:04]}  Kb5 {[%clk 0:00:08]} 109. Qg3 {[%clk 0:00:04]}  Qa8+ {[%clk 0:00:07]} 110. Kb3 {[%clk 0:00:04]}  Qd5+ {[%clk 0:00:08]} 111. Ka3 {[%clk 0:00:04]}  Qa8+ {[%clk 0:00:08]} 112. Kb2 {[%clk 0:00:04]}  Qe4 {[%clk 0:00:07]} 113. Qc3 {[%clk 0:00:04]}  Qe2+ {[%clk 0:00:08]} 114. Kb3 {[%clk 0:00:03]}  Qd1+ {[%clk 0:00:08]} 115. Ka3 {[%clk 0:00:03]}  Qa4+ {[%clk 0:00:07]} 116. Kb2 {[%clk 0:00:04]}  Qxb4+ {[%clk 0:00:08]} 117. Qxb4+ {[%clk 0:00:04]}  Kxb4 {[%clk 0:00:09]} 1/2-1/2


[Site "https://www.chess.com"]

[Event "Titled Tuesday Blitz May 9 Late 2023"]
[White "Sarana, Alexey"]
[Black "Timmermans, Mark"]
[WhiteFideId "24133795"]
[BlackFideId "1026399"]
[WhiteElo "2714"]
[BlackElo "2460"]
[Result "1-0"]
[Round "03"]
[TimeControl "180+2"]
[Date "2023.05.09"]
[WhiteClock "0:00:11"]
[BlackClock "0:00:02"]

1. d4 {[%clk 0:03:00]}  Nf6 {[%clk 0:02:57]} 2. c4 {[%clk 0:03:01]}  c5 {[%clk 0:02:57]} 3. d5 {[%clk 0:03:01]}  b5 {[%clk 0:02:57]} 4. e3 {[%clk 0:02:59]}  bxc4 {[%clk 0:02:54]} 5. Bxc4 {[%clk 0:03:00]}  Bb7 {[%clk 0:02:51]} 6. Nc3 {[%clk 0:03:00]}  g6 {[%clk 0:02:49]} 7. Nf3 {[%clk 0:02:53]}  d6 {[%clk 0:02:49]} 8. O-O {[%clk 0:02:54]}  Bg7 {[%clk 0:02:49]} 9. e4 {[%clk 0:02:53]}  O-O {[%clk 0:02:48]} 10. h3 {[%clk 0:02:52]}  Nfd7 {[%clk 0:02:48]} 11. Bg5 {[%clk 0:02:50]}  Nb6 {[%clk 0:02:45]} 12. Bd3 {[%clk 0:02:48]}  N8d7 {[%clk 0:02:44]} 13. Re1 {[%clk 0:02:48]}  Re8 {[%clk 0:02:37]} 14. Qd2 {[%clk 0:02:46]}  Qc8 {[%clk 0:02:32]} 15. Rad1 {[%clk 0:02:45]}  Ba6 {[%clk 0:02:30]} 16. Bb1 {[%clk 0:02:39]}  Nc4 {[%clk 0:02:27]} 17. Qc1 {[%clk 0:02:40]}  Rb8 {[%clk 0:02:23]} 18. b3 {[%clk 0:02:39]}  Nce5 {[%clk 0:02:22]} 19. Nxe5 {[%clk 0:02:37]}  Nxe5 {[%clk 0:02:23]} 20. f4 {[%clk 0:02:33]}  Nd7 {[%clk 0:02:14]} 21. e5 {[%clk 0:02:22]}  dxe5 {[%clk 0:02:05]} 22. f5 {[%clk 0:02:14]}  c4 {[%clk 0:01:57]} 23. fxg6 {[%clk 0:02:14]}  hxg6 {[%clk 0:01:56]} 24. d6 {[%clk 0:02:11]}  exd6 {[%clk 0:01:54]} 25. Ne4 {[%clk 0:02:11]}  Rb6 {[%clk 0:01:44]} 26. Be3 {[%clk 0:01:53]}  Rc6 {[%clk 0:01:27]} 27. Nxd6 {[%clk 0:01:51]}  Rxd6 {[%clk 0:01:28]} 28. Rxd6 {[%clk 0:01:52]}  Bf8 {[%clk 0:01:29]} 29. Rdd1 {[%clk 0:01:48]}  Bb4 {[%clk 0:01:22]} 30. Rf1 {[%clk 0:01:42]}  cxb3 {[%clk 0:01:20]} 31. Qxc8 {[%clk 0:01:41]}  Rxc8 {[%clk 0:01:10]} 32. Rxd7 {[%clk 0:01:33]}  Bxf1 {[%clk 0:01:10]} 33. Kxf1 {[%clk 0:01:33]}  b2 {[%clk 0:01:10]} 34. Ke2 {[%clk 0:01:15]}  a5 {[%clk 0:00:59]} 35. g4 {[%clk 0:01:11]}  a4 {[%clk 0:00:56]} 36. Rb7 {[%clk 0:01:07]}  Rc1 {[%clk 0:00:41]} 37. Rxb4 {[%clk 0:00:46]}  Rxb1 {[%clk 0:00:39]} 38. a3 {[%clk 0:00:47]}  f5 {[%clk 0:00:37]} 39. Bd2 {[%clk 0:00:33]}  Rh1 {[%clk 0:00:32]} 40. Rxb2 {[%clk 0:00:33]}  Rxh3 {[%clk 0:00:33]} 41. g5 {[%clk 0:00:24]}  Rxa3 {[%clk 0:00:31]} 42. Rb6 {[%clk 0:00:24]}  Kg7 {[%clk 0:00:25]} 43. Rc6 {[%clk 0:00:25]}  f4 {[%clk 0:00:22]} 44. Bc3 {[%clk 0:00:24]}  Kh7 {[%clk 0:00:12]} 45. Kd2 {[%clk 0:00:19]}  f3 {[%clk 0:00:06]} 46. Bxe5 {[%clk 0:00:19]}  f2 {[%clk 0:00:02]} 47. Rc8 {[%clk 0:00:12]}  f1=Q {[%clk 0:00:02]} 48. Rh8# {[%clk 0:00:11]} 1-0


[Site "https://www.chess.com"]

[Event "Titled Tuesday Blitz May 9 Late 2023"]
[White "Papasimakopoulos, Alexandros"]
[Black "Makarian, Rudik"]
[WhiteFideId "4244125"]
[BlackFideId "44105681"]
[WhiteElo "2359"]
[BlackElo "2461"]
[Result "1/2-1/2"]
[Round "03"]
[TimeControl "180+2"]
[Date "2023.05.09"]
[WhiteClock "0:00:33"]
[BlackClock "0:00:17"]

1. d4 {[%clk 0:03:00]}  Nf6 {[%clk 0:02:59]} 2. c4 {[%clk 0:03:00]}  e6 {[%clk 0:03:00]} 3. Nc3 {[%clk 0:03:00]}  d5 {[%clk 0:03:00]} 4. cxd5 {[%clk 0:03:00]}  exd5 {[%clk 0:03:01]} 5. Bg5 {[%clk 0:03:00]}  c6 {[%clk 0:03:01]} 6. e3 {[%clk 0:03:01]}  h6 {[%clk 0:02:58]} 7. Bh4 {[%clk 0:03:01]}  Be7 {[%clk 0:02:58]} 8. Bd3 {[%clk 0:03:00]}  O-O {[%clk 0:02:58]} 9. Qc2 {[%clk 0:03:00]}  Re8 {[%clk 0:02:59]} 10. Nf3 {[%clk 0:03:01]}  Nbd7 {[%clk 0:03:00]} 11. O-O {[%clk 0:03:01]}  Ne4 {[%clk 0:03:00]} 12. Bxe7 {[%clk 0:03:00]}  Qxe7 {[%clk 0:03:00]} 13. Bxe4 {[%clk 0:03:01]}  dxe4 {[%clk 0:03:01]} 14. Nd2 {[%clk 0:03:01]}  Nf6 {[%clk 0:03:01]} 15. Ne2 {[%clk 0:03:01]}  h5 {[%clk 0:02:58]} 16. Rac1 {[%clk 0:02:58]}  h4 {[%clk 0:02:58]} 17. h3 {[%clk 0:02:58]}  Nd5 {[%clk 0:02:57]} 18. a3 {[%clk 0:02:56]}  g5 {[%clk 0:02:54]} 19. Nc3 {[%clk 0:02:56]}  Nf6 {[%clk 0:02:22]} 20. Ne2 {[%clk 0:02:47]}  g4 {[%clk 0:02:21]} 21. hxg4 {[%clk 0:02:44]}  Bxg4 {[%clk 0:02:17]} 22. Nf4 {[%clk 0:02:44]}  Nd5 {[%clk 0:02:04]} 23. Nxd5 {[%clk 0:02:41]}  cxd5 {[%clk 0:02:05]} 24. Qc7 {[%clk 0:02:42]}  Qg5 {[%clk 0:02:01]} 25. Qf4 {[%clk 0:02:39]}  Qxf4 {[%clk 0:01:48]} 26. exf4 {[%clk 0:02:38]}  e3 {[%clk 0:01:46]} 27. fxe3 {[%clk 0:02:38]}  Rxe3 {[%clk 0:01:47]} 28. Rc5 {[%clk 0:02:18]}  Rd8 {[%clk 0:01:36]} 29. Nf3 {[%clk 0:01:55]}  Bxf3 {[%clk 0:01:28]} 30. Rxf3 {[%clk 0:01:56]}  Rxf3 {[%clk 0:01:28]} 31. gxf3 {[%clk 0:01:57]}  Kg7 {[%clk 0:01:21]} 32. Kg2 {[%clk 0:01:49]}  Kf6 {[%clk 0:01:21]} 33. Rc7 {[%clk 0:01:49]}  Rg8+ {[%clk 0:01:18]} 34. Kh3 {[%clk 0:01:48]}  Rg3+ {[%clk 0:01:17]} 35. Kxh4 {[%clk 0:01:49]}  Rxf3 {[%clk 0:01:18]} 36. Kg4 {[%clk 0:01:48]}  Rb3 {[%clk 0:01:18]} 37. Rc2 {[%clk 0:01:35]}  a6 {[%clk 0:01:15]} 38. Re2 {[%clk 0:01:35]}  Rd3 {[%clk 0:01:13]} 39. Re8 {[%clk 0:01:28]}  Rxd4 {[%clk 0:01:08]} 40. Rb8 {[%clk 0:01:28]}  b5 {[%clk 0:00:54]} 41. Rb6+ {[%clk 0:01:28]}  Ke7 {[%clk 0:00:54]} 42. Rxa6 {[%clk 0:01:28]}  Rd2 {[%clk 0:00:55]} 43. b4 {[%clk 0:01:19]}  Rd3 {[%clk 0:00:48]} 44. Kf5 {[%clk 0:01:19]}  Re3 {[%clk 0:00:48]} 45. Ra7+ {[%clk 0:01:17]}  Kd6 {[%clk 0:00:45]} 46. Rxf7 {[%clk 0:01:14]}  d4 {[%clk 0:00:44]} 47. Rf8 {[%clk 0:01:03]}  Kd5 {[%clk 0:00:39]} 48. Rd8+ {[%clk 0:00:57]}  Kc4 {[%clk 0:00:39]} 49. Rc8+ {[%clk 0:00:58]}  Kb3 {[%clk 0:00:37]} 50. Rc5 {[%clk 0:00:55]}  d3 {[%clk 0:00:29]} 51. Rxb5 {[%clk 0:00:54]}  d2 {[%clk 0:00:29]} 52. Rd5 {[%clk 0:00:53]}  Kc2 {[%clk 0:00:30]} 53. Rxd2+ {[%clk 0:00:44]}  Kxd2 {[%clk 0:00:31]} 54. Kg6 {[%clk 0:00:38]}  Rg3+ {[%clk 0:00:30]} 55. Kf6 {[%clk 0:00:37]}  Ke3 {[%clk 0:00:29]} 56. f5 {[%clk 0:00:32]}  Kf4 {[%clk 0:00:29]} 57. Ke6 {[%clk 0:00:32]}  Re3+ {[%clk 0:00:28]} 58. Kd6 {[%clk 0:00:31]}  Kxf5 {[%clk 0:00:18]} 59. b5 {[%clk 0:00:31]}  Rxa3 {[%clk 0:00:18]} 60. b6 {[%clk 0:00:31]}  Rb3 {[%clk 0:00:17]} 61. Kc7 {[%clk 0:00:31]}  Ke6 {[%clk 0:00:16]} 62. b7 {[%clk 0:00:31]}  Rc3+ {[%clk 0:00:17]} 63. Kd8 {[%clk 0:00:31]}  Rh3 {[%clk 0:00:16]} 64. b8=Q {[%clk 0:00:31]}  Rh8+ {[%clk 0:00:16]} 65. Kc7 {[%clk 0:00:32]}  Rxb8 {[%clk 0:00:17]} 66. Kxb8 {[%clk 0:00:33]} 1/2-1/2


[Site "https://www.chess.com"]

[Event "Titled Tuesday Blitz May 9 Late 2023"]
[White "Kozak, Adam"]
[Black "Bitoon, Richard"]
[WhiteFideId "753246"]
[BlackFideId "5201110"]
[WhiteElo "2469"]
[BlackElo "2374"]
[Result "1-0"]
[Round "03"]
[TimeControl "180+2"]
[Date "2023.05.09"]
[WhiteClock "0:01:05"]
[BlackClock "0:00:12"]

1. d4 {[%clk 0:03:00]}  Nf6 {[%clk 0:02:59]} 2. c4 {[%clk 0:03:00]}  g6 {[%clk 0:03:00]} 3. Nc3 {[%clk 0:02:59]}  Bg7 {[%clk 0:03:00]} 4. e4 {[%clk 0:02:59]}  O-O {[%clk 0:03:01]} 5. Nf3 {[%clk 0:03:00]}  d6 {[%clk 0:03:02]} 6. Be2 {[%clk 0:02:59]}  e5 {[%clk 0:03:02]} 7. O-O {[%clk 0:02:59]}  Nc6 {[%clk 0:03:02]} 8. d5 {[%clk 0:02:58]}  Ne7 {[%clk 0:03:03]} 9. Ne1 {[%clk 0:02:58]}  Nd7 {[%clk 0:03:03]} 10. Be3 {[%clk 0:02:59]}  f5 {[%clk 0:03:03]} 11. f3 {[%clk 0:02:59]}  f4 {[%clk 0:03:04]} 12. Bf2 {[%clk 0:03:00]}  g5 {[%clk 0:03:05]} 13. a4 {[%clk 0:03:00]}  Rf6 {[%clk 0:03:06]} 14. a5 {[%clk 0:02:57]}  Rh6 {[%clk 0:02:50]} 15. Nb5 {[%clk 0:02:52]}  Nf6 {[%clk 0:02:47]} 16. Nxa7 {[%clk 0:02:45]}  Bd7 {[%clk 0:02:31]} 17. Nb5 {[%clk 0:02:22]}  Qe8 {[%clk 0:02:26]} 18. Nxc7 {[%clk 0:02:03]}  Qh5 {[%clk 0:02:26]} 19. h4 {[%clk 0:02:03]}  Rc8 {[%clk 0:02:07]} 20. Ne6 {[%clk 0:02:02]}  gxh4 {[%clk 0:01:58]} 21. Kh2 {[%clk 0:02:02]}  h3 {[%clk 0:01:26]} 22. g4 {[%clk 0:01:58]}  fxg3+ {[%clk 0:01:21]} 23. Bxg3 {[%clk 0:01:58]}  Rg6 {[%clk 0:01:04]} 24. f4 {[%clk 0:01:45]}  Ng4+ {[%clk 0:01:03]} 25. Bxg4 {[%clk 0:01:44]}  Rxg4 {[%clk 0:01:02]} 26. f5 {[%clk 0:01:42]}  Bxe6 {[%clk 0:00:56]} 27. dxe6 {[%clk 0:01:37]}  Bh6 {[%clk 0:00:44]} 28. Ra3 {[%clk 0:01:27]}  Bf4 {[%clk 0:00:40]} 29. Bxf4 {[%clk 0:01:12]}  exf4 {[%clk 0:00:40]} 30. Rg1 {[%clk 0:01:10]}  f3 {[%clk 0:00:18]} 31. Qxf3 {[%clk 0:01:07]}  Rxg1 {[%clk 0:00:12]} 32. Qxh5 {[%clk 0:01:05]} 1-0


[Site "https://www.chess.com"]

[Event "Titled Tuesday Blitz May 9 Late 2023"]
[White "Mihajlov, Sebastian"]
[Black "Zhigalko, Sergei"]
[WhiteFideId "1512110"]
[BlackFideId "13502956"]
[WhiteElo "2478"]
[BlackElo "2626"]
[Result "0-1"]
[Round "03"]
[TimeControl "180+2"]
[Date "2023.05.09"]
[WhiteClock "0:00:05"]
[BlackClock "0:00:03"]

1. e4 {[%clk 0:03:00]}  c5 {[%clk 0:03:00]} 2. Nf3 {[%clk 0:03:01]}  Nc6 {[%clk 0:03:00]} 3. d4 {[%clk 0:03:02]}  cxd4 {[%clk 0:03:01]} 4. Nxd4 {[%clk 0:03:03]}  Nf6 {[%clk 0:03:01]} 5. Nc3 {[%clk 0:03:04]}  e5 {[%clk 0:03:02]} 6. Ndb5 {[%clk 0:03:04]}  d6 {[%clk 0:03:02]} 7. Bg5 {[%clk 0:03:05]}  a6 {[%clk 0:03:02]} 8. Na3 {[%clk 0:03:06]}  b5 {[%clk 0:03:02]} 9. Nd5 {[%clk 0:03:06]}  Be7 {[%clk 0:03:02]} 10. Bxf6 {[%clk 0:03:07]}  Bxf6 {[%clk 0:03:03]} 11. c3 {[%clk 0:03:08]}  Bg5 {[%clk 0:03:03]} 12. Nc2 {[%clk 0:03:09]}  Ne7 {[%clk 0:03:04]} 13. h4 {[%clk 0:03:00]}  Bh6 {[%clk 0:03:03]} 14. a4 {[%clk 0:02:51]}  bxa4 {[%clk 0:03:02]} 15. Ncb4 {[%clk 0:02:52]}  O-O {[%clk 0:03:02]} 16. Qxa4 {[%clk 0:02:39]}  a5 {[%clk 0:03:02]} 17. Nxe7+ {[%clk 0:02:38]}  Qxe7 {[%clk 0:03:03]} 18. Nd5 {[%clk 0:02:37]}  Qd8 {[%clk 0:03:00]} 19. b4 {[%clk 0:02:36]}  Bd7 {[%clk 0:02:41]} 20. b5 {[%clk 0:02:33]}  Kh8 {[%clk 0:02:01]} 21. Be2 {[%clk 0:02:28]}  Be6 {[%clk 0:01:55]} 22. Rd1 {[%clk 0:02:07]}  Rc8 {[%clk 0:01:43]} 23. c4 {[%clk 0:01:47]}  Rc5 {[%clk 0:01:42]} 24. g3 {[%clk 0:01:39]}  f5 {[%clk 0:01:26]} 25. exf5 {[%clk 0:01:39]}  Bxf5 {[%clk 0:01:09]} 26. O-O {[%clk 0:01:34]}  Be4 {[%clk 0:01:09]} 27. f3 {[%clk 0:00:58]}  Bxd5 {[%clk 0:01:04]} 28. Rxd5 {[%clk 0:00:57]}  Be3+ {[%clk 0:00:58]} 29. Kg2 {[%clk 0:00:57]}  Rxd5 {[%clk 0:00:34]} 30. cxd5 {[%clk 0:00:57]}  Ba7 {[%clk 0:00:35]} 31. Qc4 {[%clk 0:00:51]}  Bc5 {[%clk 0:00:34]} 32. f4 {[%clk 0:00:47]}  Re8 {[%clk 0:00:26]} 33. Bg4 {[%clk 0:00:44]}  e4 {[%clk 0:00:23]} 34. Be6 {[%clk 0:00:43]}  e3 {[%clk 0:00:23]} 35. Rf3 {[%clk 0:00:25]}  Qf6 {[%clk 0:00:22]} 36. Qe2 {[%clk 0:00:25]}  a4 {[%clk 0:00:22]} 37. Bd7 {[%clk 0:00:18]}  Rd8 {[%clk 0:00:14]} 38. Bc6 {[%clk 0:00:18]}  a3 {[%clk 0:00:15]} 39. Rf1 {[%clk 0:00:15]}  Qc3 {[%clk 0:00:09]} 40. Kf3 {[%clk 0:00:14]}  Rf8 {[%clk 0:00:08]} 41. Rd1 {[%clk 0:00:11]}  h6 {[%clk 0:00:06]} 42. Rd3 {[%clk 0:00:10]}  Qa1 {[%clk 0:00:04]} 43. Qd1 {[%clk 0:00:04]}  Qb2 {[%clk 0:00:03]} 44. Qe2 {[%clk 0:00:04]}  Qf6 {[%clk 0:00:02]} 45. h5 {[%clk 0:00:04]}  Qf5 {[%clk 0:00:02]} 46. Kg2 {[%clk 0:00:04]}  a2 {[%clk 0:00:03]} 47. Ra3 {[%clk 0:00:03]}  Qe4+ {[%clk 0:00:03]} 48. Kh3 {[%clk 0:00:03]}  Bxa3 {[%clk 0:00:02]} 49. Qxa2 {[%clk 0:00:04]}  e2 {[%clk 0:00:02]} 50. Qxa3 {[%clk 0:00:03]}  e1=Q {[%clk 0:00:02]} 51. Qxd6 {[%clk 0:00:04]}  Q1h1+ {[%clk 0:00:03]} 52. Kg4 {[%clk 0:00:05]}  Qf5# {[%clk 0:00:03]} 0-1


[Site "https://www.chess.com"]

[Event "Titled Tuesday Blitz May 9 Late 2023"]
[White "Tatarinov, Dmitry"]
[Black "Tari, Aryan"]
[WhiteFideId "24160067"]
[BlackFideId "1510045"]
[WhiteElo "2326"]
[BlackElo "2571"]
[Result "1-0"]
[Round "03"]
[TimeControl "180+2"]
[Date "2023.05.09"]
[WhiteClock "0:00:24"]
[BlackClock "0:00:03"]

1. e4 {[%clk 0:02:58]}  c6 {[%clk 0:02:59]} 2. Nf3 {[%clk 0:02:55]}  d5 {[%clk 0:03:00]} 3. Nc3 {[%clk 0:02:55]}  dxe4 {[%clk 0:02:57]} 4. Nxe4 {[%clk 0:02:56]}  Nf6 {[%clk 0:02:57]} 5. Qe2 {[%clk 0:02:54]}  Na6 {[%clk 0:02:55]} 6. Nxf6+ {[%clk 0:02:44]}  gxf6 {[%clk 0:02:56]} 7. d4 {[%clk 0:02:44]}  Nb4 {[%clk 0:02:48]} 8. c3 {[%clk 0:02:41]}  Nd5 {[%clk 0:02:39]} 9. g3 {[%clk 0:02:40]}  Bg4 {[%clk 0:02:26]} 10. Bg2 {[%clk 0:02:39]}  h5 {[%clk 0:02:27]} 11. h3 {[%clk 0:02:38]}  Bf5 {[%clk 0:02:26]} 12. Bd2 {[%clk 0:02:36]}  Qd7 {[%clk 0:02:06]} 13. c4 {[%clk 0:02:33]}  Nb6 {[%clk 0:02:03]} 14. b3 {[%clk 0:02:33]}  e6 {[%clk 0:02:03]} 15. Bc3 {[%clk 0:02:30]}  a5 {[%clk 0:01:49]} 16. O-O {[%clk 0:02:24]}  Be7 {[%clk 0:01:47]} 17. Rfe1 {[%clk 0:02:23]}  Bb4 {[%clk 0:01:43]} 18. Rac1 {[%clk 0:02:14]}  Qe7 {[%clk 0:01:39]} 19. Nh4 {[%clk 0:01:59]}  Bh7 {[%clk 0:01:39]} 20. d5 {[%clk 0:01:29]}  cxd5 {[%clk 0:00:19]} 21. cxd5 {[%clk 0:01:28]}  e5 {[%clk 0:00:09]} 22. Qb5+ {[%clk 0:01:19]}  Nd7 {[%clk 0:00:09]} 23. Qxb7 {[%clk 0:01:05]}  Rb8 {[%clk 0:00:09]} 24. Bxb4 {[%clk 0:01:05]}  Qxb4 {[%clk 0:00:07]} 25. Rc8+ {[%clk 0:00:55]}  Ke7 {[%clk 0:00:04]} 26. d6+ {[%clk 0:00:55]}  Qxd6 {[%clk 0:00:03]} 27. Rxb8 {[%clk 0:00:50]}  Rxb8 {[%clk 0:00:04]} 28. Qf3 {[%clk 0:00:49]}  Bg6 {[%clk 0:00:04]} 29. Rd1 {[%clk 0:00:47]}  Qc5 {[%clk 0:00:04]} 30. Nf5+ {[%clk 0:00:47]}  Bxf5 {[%clk 0:00:05]} 31. Qxf5 {[%clk 0:00:47]}  Nb6 {[%clk 0:00:05]} 32. Qxh5 {[%clk 0:00:47]}  a4 {[%clk 0:00:06]} 33. Qg4 {[%clk 0:00:43]}  axb3 {[%clk 0:00:05]} 34. axb3 {[%clk 0:00:44]}  Rd8 {[%clk 0:00:02]} 35. Rxd8 {[%clk 0:00:42]}  Kxd8 {[%clk 0:00:03]} 36. h4 {[%clk 0:00:42]}  Qc1+ {[%clk 0:00:03]} 37. Kh2 {[%clk 0:00:42]}  Qd2 {[%clk 0:00:04]} 38. Qf3 {[%clk 0:00:38]}  Nd7 {[%clk 0:00:03]} 39. h5 {[%clk 0:00:35]}  Ke7 {[%clk 0:00:04]} 40. Qe3 {[%clk 0:00:34]}  Qc2 {[%clk 0:00:03]} 41. b4 {[%clk 0:00:33]}  Nf8 {[%clk 0:00:03]} 42. b5 {[%clk 0:00:33]}  Ne6 {[%clk 0:00:02]} 43. b6 {[%clk 0:00:32]}  Qb2 {[%clk 0:00:02]} 44. b7 {[%clk 0:00:33]}  Nd4 {[%clk 0:00:02]} 45. h6 {[%clk 0:00:33]}  Kf8 {[%clk 0:00:03]} 46. h7 {[%clk 0:00:25]}  Kg7 {[%clk 0:00:04]} 47. Qh6+ {[%clk 0:00:25]}  Kxh6 {[%clk 0:00:03]} 48. h8=Q+ {[%clk 0:00:25]}  Kg6 {[%clk 0:00:04]} 49. b8=Q {[%clk 0:00:24]}  Qxf2 {[%clk 0:00:03]} 50. Qbg8+ {[%clk 0:00:24]}  Kf5 {[%clk 0:00:03]} 51. Qh3# {[%clk 0:00:24]} 1-0


[Site "https://www.chess.com"]